[Event "Betsys MČR v online bleskovém šachu 2021"]
[Site "Chess.com"]
[Date "2021.04.17"]
[Round "7"]
[White "Vojta0007"]
[Black "Tynano"]
[Result "0-1"]
[WhiteElo "1480"]
[BlackElo "1977"]
[TimeControl "180+1"]
[EndTime "10:08:34 PDT"]
[Termination "Uživatel Tynano zvítězil matem"]

1. d4 {[%clk 0:03:00.9]} 1... Nf6 {[%clk 0:02:58.9]} 2. c4 {[%clk 0:03:00.4]}
2... g6 {[%clk 0:02:57.3]} 3. Nc3 {[%clk 0:02:59.3]} 3... d5 {[%clk 0:02:56.8]}
4. cxd5 {[%clk 0:02:58.2]} 4... Nxd5 {[%clk 0:02:57.7]} 5. e4 {[%clk 0:02:57.1]}
5... Nxc3 {[%clk 0:02:57.3]} 6. bxc3 {[%clk 0:02:56.4]} 6... Bg7 {[%clk
0:02:57.9]} 7. Nf3 {[%clk 0:02:55.4]} 7... c5 {[%clk 0:02:58.3]} 8. Bb2 {[%clk
0:02:53.8]} 8... Qa5 {[%clk 0:02:54.5]} 9. Qd2 {[%clk 0:02:47.5]} 9... Nc6
{[%clk 0:02:53.5]} 10. Be2 {[%clk 0:02:40.6]} 10... Bg4 {[%clk 0:02:49.4]} 11.
d5 {[%clk 0:02:37.8]} 11... Bxf3 {[%clk 0:02:49.1]} 12. Bxf3 {[%clk 0:02:36.5]}
12... Ne5 {[%clk 0:02:46.9]} 13. Be2 {[%clk 0:02:27]} 13... O-O {[%clk
0:02:44.1]} 14. O-O {[%clk 0:02:25.2]} 14... f5 {[%clk 0:02:34.1]} 15. f3 {[%clk
0:02:21.6]} 15... f4 {[%clk 0:02:32.2]} 16. Rfd1 {[%clk 0:02:14.1]} 16... c4
{[%clk 0:02:31.8]} 17. Qe1 {[%clk 0:02:04.2]} 17... Qb6+ {[%clk 0:02:30.4]} 18.
Qf2 {[%clk 0:02:01.4]} 18... Qxb2 {[%clk 0:02:30.3]} 19. Rdb1 {[%clk 0:01:56.8]}
19... Qxc3 {[%clk 0:02:26.9]} 20. Rc1 {[%clk 0:01:55.8]} 20... Qe3 {[%clk
0:02:26.2]} 21. Qxe3 {[%clk 0:01:54.5]} 21... fxe3 {[%clk 0:02:27.1]} 22. Rab1
{[%clk 0:01:49.9]} 22... Rfc8 {[%clk 0:02:14.3]} 23. Rxb7 {[%clk 0:01:43.5]}
23... Nd3 {[%clk 0:02:10.6]} 24. Rd1 {[%clk 0:01:33.9]} 24... Bd4 {[%clk
0:02:02.8]} 25. Kh1 {[%clk 0:01:25]} 25... Nf2+ {[%clk 0:02:01.2]} 26. Kg1
{[%clk 0:01:23.2]} 26... Nxd1 {[%clk 0:02:02.1]} 27. Bxd1 {[%clk 0:01:22.7]}
27... e2+ {[%clk 0:02:02.1]} 28. Kh1 {[%clk 0:01:20.8]} 28... exd1=Q# {[%clk
0:02:03]} 0-1

[Event "Betsys MČR v online bleskovém šachu 2021"]
[Site "Chess.com"]
[Date "2021.04.17"]
[Round "7"]
[White "VojtaT"]
[Black "Dale00007"]
[Result "1-0"]
[WhiteElo "1736"]
[BlackElo "1405"]
[TimeControl "180+1"]
[EndTime "10:08:41 PDT"]
[Termination "Uživatel VojtaT zvítězil matem"]

1. e4 {[%clk 0:03:00.9]} 1... c5 {[%clk 0:02:57.9]} 2. Nf3 {[%clk 0:02:59.3]}
2... d6 {[%clk 0:02:55.9]} 3. d4 {[%clk 0:02:56.5]} 3... cxd4 {[%clk 0:02:55.1]}
4. Nxd4 {[%clk 0:02:54.7]} 4... Nf6 {[%clk 0:02:54.7]} 5. Nc3 {[%clk 0:02:53.7]}
5... a6 {[%clk 0:02:54.9]} 6. Bg5 {[%clk 0:02:48]} 6... e6 {[%clk 0:02:54.4]} 7.
f4 {[%clk 0:02:47.7]} 7... Be7 {[%clk 0:02:52.9]} 8. Qf3 {[%clk 0:02:44.5]} 8...
O-O {[%clk 0:02:51.8]} 9. Be2 {[%clk 0:02:35.3]} 9... Qc7 {[%clk 0:02:50.6]} 10.
O-O {[%clk 0:02:09.1]} 10... Re8 {[%clk 0:02:49.6]} 11. Rad1 {[%clk 0:02:01.2]}
11... Nc6 {[%clk 0:02:45.2]} 12. Nxc6 {[%clk 0:02:00.4]} 12... Qxc6 {[%clk
0:02:44.2]} 13. e5 {[%clk 0:01:55.1]} 13... Qxf3 {[%clk 0:02:37.8]} 14. Bxf3
{[%clk 0:01:51.2]} 14... dxe5 {[%clk 0:02:15.3]} 15. fxe5 {[%clk 0:01:50.6]}
15... Nd5 {[%clk 0:02:13.6]} 16. Nxd5 {[%clk 0:01:35.6]} 16... Bxg5 {[%clk
0:02:08.6]} 17. Nc7 {[%clk 0:01:35.3]} 17... Be3+ {[%clk 0:01:53.6]} 18. Kh1
{[%clk 0:01:33.9]} 18... Re7 {[%clk 0:01:44.2]} 19. Rd8+ {[%clk 0:01:30.4]}
19... Re8 {[%clk 0:01:30.3]} 20. Rxe8# {[%clk 0:01:29.8]} 1-0

[Event "Betsys MČR v online bleskovém šachu 2021"]
[Site "Chess.com"]
[Date "2021.04.17"]
[Round "7"]
[White "keram91"]
[Black "tondapesek"]
[Result "0-1"]
[WhiteElo "753"]
[BlackElo "1035"]
[TimeControl "180+1"]
[EndTime "10:08:52 PDT"]
[Termination "Uživatel tondapesek zvítězil po vzdání soupeře"]

1. d4 {[%clk 0:02:56.1]} 1... d5 {[%clk 0:02:59.8]} 2. Nc3 {[%clk 0:02:53.4]}
2... Nf6 {[%clk 0:02:59]} 3. f3 {[%clk 0:02:51.9]} 3... Bf5 {[%clk 0:02:57.4]}
4. g4 {[%clk 0:02:51.4]} 4... Bg6 {[%clk 0:02:57.5]} 5. Bf4 {[%clk 0:02:48.5]}
5... Nc6 {[%clk 0:02:56.6]} 6. g5 {[%clk 0:02:47.5]} 6... Nd7 {[%clk 0:02:54.4]}
7. Bh3 {[%clk 0:02:44.2]} 7... e6 {[%clk 0:02:53.7]} 8. a3 {[%clk 0:02:40.3]}
8... Bd6 {[%clk 0:02:51.1]} 9. Bxd6 {[%clk 0:02:38.5]} 9... cxd6 {[%clk
0:02:51.1]} 10. f4 {[%clk 0:02:33]} 10... a6 {[%clk 0:02:49.7]} 11. Nf3 {[%clk
0:02:32.3]} 11... Be4 {[%clk 0:02:47.8]} 12. Rf1 {[%clk 0:02:29.3]} 12... Bxf3
{[%clk 0:02:46.5]} 13. Rxf3 {[%clk 0:02:29.2]} 13... O-O {[%clk 0:02:41]} 14. g6
{[%clk 0:02:28.8]} 14... fxg6 {[%clk 0:02:39.7]} 15. Bxe6+ {[%clk 0:02:24]}
15... Kh8 {[%clk 0:02:37.3]} 16. Nxd5 {[%clk 0:02:20]} 16... Qh4+ {[%clk
0:02:31.1]} 17. Rf2 {[%clk 0:02:17]} 17... Nf6 {[%clk 0:02:27.5]} 18. Nxf6
{[%clk 0:02:15.7]} 18... Rxf6 {[%clk 0:02:27.2]} 19. Qd2 {[%clk 0:02:09.4]}
19... Raf8 {[%clk 0:02:21.6]} 20. O-O-O {[%clk 0:02:07.7]} 20... Qxf2 {[%clk
0:02:20.7]} 21. Bd5 {[%clk 0:02:04.8]} 21... Qxf4 {[%clk 0:02:16.1]} 22. Bxc6
{[%clk 0:02:01.5]} 22... bxc6 {[%clk 0:02:15.6]} 23. Qxf4 {[%clk 0:01:55.5]}
23... Rxf4 {[%clk 0:02:15.1]} 24. a4 {[%clk 0:01:54.2]} 24... Rf1 {[%clk
0:02:13.3]} 25. h4 {[%clk 0:01:50.6]} 25... Rxd1+ {[%clk 0:02:12.9]} 26. Kxd1
{[%clk 0:01:50.7]} 26... Rf4 {[%clk 0:02:12.8]} 27. Kd2 {[%clk 0:01:50.6]} 27...
Rxd4+ {[%clk 0:02:12.6]} 28. Kc3 {[%clk 0:01:50.8]} 28... Rxa4 {[%clk
0:02:12.4]} 29. b3 {[%clk 0:01:50.5]} 29... Rxh4 {[%clk 0:02:12.3]} 30. e3
{[%clk 0:01:47.3]} 30... g5 {[%clk 0:02:12.2]} 31. Kd3 {[%clk 0:01:45.7]} 31...
g4 {[%clk 0:02:11.9]} 32. Ke2 {[%clk 0:01:45.2]} 32... g3 {[%clk 0:02:09.4]} 33.
Kf1 {[%clk 0:01:45.1]} 33... Re4 {[%clk 0:02:08.8]} 34. Kg2 {[%clk 0:01:43.3]}
34... Rxe3 {[%clk 0:02:08.8]} 35. c4 {[%clk 0:01:42.8]} 35... Rxb3 {[%clk
0:02:08.4]} 36. c5 {[%clk 0:01:42.7]} 36... dxc5 {[%clk 0:02:08.1]} 37. Kg1
{[%clk 0:01:40.8]} 37... c4 {[%clk 0:02:07.2]} 38. Kg2 {[%clk 0:01:31]} 38... c3
{[%clk 0:02:06.9]} 0-1

[Event "Betsys MČR v online bleskovém šachu 2021"]
[Site "Chess.com"]
[Date "2021.04.17"]
[Round "7"]
[White "SanyH"]
[Black "krajic001"]
[Result "1-0"]
[WhiteElo "1606"]
[BlackElo "1222"]
[TimeControl "180+1"]
[EndTime "10:08:54 PDT"]
[Termination "Uživatel SanyH zvítězil po vzdání soupeře"]

1. e4 {[%clk 0:03:00.6]} 1... e5 {[%clk 0:02:03.3]} 2. f4 {[%clk 0:02:59.6]}
2... d5 {[%clk 0:01:59.6]} 3. exd5 {[%clk 0:02:58.3]} 3... Qxd5 {[%clk
0:01:54.4]} 4. Nc3 {[%clk 0:02:57]} 4... Qe6 {[%clk 0:01:52.7]} 5. Be2 {[%clk
0:02:46.2]} 5... Nf6 {[%clk 0:01:41.5]} 6. Nf3 {[%clk 0:02:45.2]} 6... exf4
{[%clk 0:01:35.9]} 7. O-O {[%clk 0:02:43.4]} 7... Bd6 {[%clk 0:01:33.8]} 8. Re1
{[%clk 0:02:42]} 8... O-O {[%clk 0:01:31]} 9. d4 {[%clk 0:02:40.1]} 9... Qd7
{[%clk 0:01:19]} 10. Bd3 {[%clk 0:02:32.8]} 10... Nc6 {[%clk 0:01:14.2]} 11. Ne4
{[%clk 0:02:25.4]} 11... Nxe4 {[%clk 0:01:11.1]} 12. Bxe4 {[%clk 0:02:26.2]}
12... Re8 {[%clk 0:01:03]} 13. c3 {[%clk 0:02:19.4]} 13... Qg4 {[%clk
0:00:52.1]} 14. Qd3 {[%clk 0:02:15.4]} 14... f5 {[%clk 0:00:46]} 15. Bd5+ {[%clk
0:02:00.1]} 15... Kh8 {[%clk 0:00:38.3]} 16. Rxe8+ {[%clk 0:01:59.3]} 1-0

[Event "Betsys MČR v online bleskovém šachu 2021"]
[Site "Chess.com"]
[Date "2021.04.17"]
[Round "7"]
[White "Smetanka674"]
[Black "Nevimjakhrat"]
[Result "1-0"]
[WhiteElo "1761"]
[BlackElo "1466"]
[TimeControl "180+1"]
[EndTime "10:09:01 PDT"]
[Termination "Uživatel Smetanka674 zvítězil po vzdání soupeře"]

1. d4 {[%clk 0:03:00.9]} 1... Nf6 {[%clk 0:02:57.5]} 2. c4 {[%clk 0:03:00.7]}
2... e6 {[%clk 0:02:57.9]} 3. Nc3 {[%clk 0:03:00.5]} 3... Bb4 {[%clk 0:02:58.3]}
4. Nf3 {[%clk 0:03:00.2]} 4... b6 {[%clk 0:02:57.1]} 5. Bg5 {[%clk 0:02:59.8]}
5... Bb7 {[%clk 0:02:52.2]} 6. e3 {[%clk 0:02:59.6]} 6... h6 {[%clk 0:02:50.8]}
7. Bh4 {[%clk 0:02:59.1]} 7... g5 {[%clk 0:02:49.5]} 8. Bg3 {[%clk 0:02:59]}
8... Ne4 {[%clk 0:02:49.2]} 9. Rc1 {[%clk 0:02:54.4]} 9... Nxg3 {[%clk
0:02:45.7]} 10. hxg3 {[%clk 0:02:53.5]} 10... d5 {[%clk 0:02:44.6]} 11. Bd3
{[%clk 0:02:49.2]} 11... Nd7 {[%clk 0:02:41.4]} 12. Kf1 {[%clk 0:02:40.3]} 12...
Bxc3 {[%clk 0:02:29.3]} 13. Rxc3 {[%clk 0:02:38.8]} 13... Nf6 {[%clk 0:02:26.4]}
14. Qa4+ {[%clk 0:02:35.2]} 14... c6 {[%clk 0:02:18.6]} 15. Nxg5 {[%clk
0:02:31.6]} 15... b5 {[%clk 0:01:40.8]} 16. cxb5 {[%clk 0:02:28.7]} 16... cxb5
{[%clk 0:01:06.1]} 17. Qxb5+ {[%clk 0:02:26.3]} 17... Qd7 {[%clk 0:01:07]} 18.
Qxd7+ {[%clk 0:02:21.8]} 18... Nxd7 {[%clk 0:01:07.9]} 19. Rc7 {[%clk
0:02:12.4]} 19... Ke7 {[%clk 0:00:53]} 20. Nxf7 {[%clk 0:02:07.2]} 20... Bc8
{[%clk 0:00:34.5]} 21. Nxh8 {[%clk 0:02:04.4]} 1-0

[Event "Betsys MČR v online bleskovém šachu 2021"]
[Site "Chess.com"]
[Date "2021.04.17"]
[Round "7"]
[White "Qb1xh8"]
[Black "mendryxchess"]
[Result "1-0"]
[WhiteElo "2151"]
[BlackElo "1786"]
[TimeControl "180+1"]
[EndTime "10:09:06 PDT"]
[Termination "Uživatel Qb1xh8 zvítězil po vzdání soupeře"]

1. d4 {[%clk 0:03:00.9]} 1... Nf6 {[%clk 0:02:59.8]} 2. Nf3 {[%clk 0:03:00.6]}
2... e6 {[%clk 0:03:00]} 3. Bg5 {[%clk 0:02:59.5]} 3... Be7 {[%clk 0:02:59.6]}
4. e3 {[%clk 0:02:59.7]} 4... d5 {[%clk 0:02:57.6]} 5. Bd3 {[%clk 0:02:59.5]}
5... O-O {[%clk 0:02:57.6]} 6. O-O {[%clk 0:02:59.4]} 6... c5 {[%clk 0:02:56.6]}
7. c3 {[%clk 0:02:55.3]} 7... Nc6 {[%clk 0:02:56.1]} 8. Nbd2 {[%clk 0:02:55]}
8... Re8 {[%clk 0:02:51.6]} 9. Re1 {[%clk 0:02:48.9]} 9... c4 {[%clk 0:02:50.9]}
10. Bc2 {[%clk 0:02:48.4]} 10... b5 {[%clk 0:02:48.1]} 11. e4 {[%clk 0:02:36.1]}
11... dxe4 {[%clk 0:02:46.1]} 12. Nxe4 {[%clk 0:02:35.5]} 12... a5 {[%clk
0:02:31.5]} 13. Nxf6+ {[%clk 0:02:00.4]} 13... Bxf6 {[%clk 0:02:32.4]} 14. Bxf6
{[%clk 0:02:00.6]} 14... Qxf6 {[%clk 0:02:32.8]} 15. Be4 {[%clk 0:02:01.2]}
15... Bb7 {[%clk 0:02:30]} 16. Ne5 {[%clk 0:01:59.4]} 16... Rec8 {[%clk
0:02:19.7]} 17. Qh5 {[%clk 0:01:22]} 17... h6 {[%clk 0:02:11.7]} 18. Re3 {[%clk
0:01:19]} 18... Rab8 {[%clk 0:01:45.5]} 19. Rf3 {[%clk 0:01:16.1]} 19... Qe7
{[%clk 0:01:38]} 20. Rxf7 {[%clk 0:01:13.2]} 20... Qd6 {[%clk 0:01:30.7]} 21.
Qg6 {[%clk 0:01:11.1]} 1-0

[Event "Betsys MČR v online bleskovém šachu 2021"]
[Site "Chess.com"]
[Date "2021.04.17"]
[Round "7"]
[White "Michaela1994"]
[Black "DiscoSTU666"]
[Result "1-0"]
[WhiteElo "1641"]
[BlackElo "1874"]
[TimeControl "180+1"]
[EndTime "10:09:07 PDT"]
[Termination "Uživatel Michaela1994 zvítězil matem"]

1. e4 {[%clk 0:03:00.9]} 1... c5 {[%clk 0:02:58.8]} 2. c3 {[%clk 0:03:00.4]}
2... e6 {[%clk 0:02:57.3]} 3. d4 {[%clk 0:03:00.4]} 3... d5 {[%clk 0:02:56.7]}
4. e5 {[%clk 0:02:55.4]} 4... Nc6 {[%clk 0:02:55.8]} 5. Nf3 {[%clk 0:02:54.8]}
5... Bd7 {[%clk 0:02:55.6]} 6. Bd3 {[%clk 0:02:47.9]} 6... f6 {[%clk 0:02:52.2]}
7. O-O {[%clk 0:02:41.3]} 7... Qb6 {[%clk 0:02:44.1]} 8. Bc2 {[%clk 0:02:37.6]}
8... O-O-O {[%clk 0:02:34.7]} 9. a4 {[%clk 0:02:33.8]} 9... Qc7 {[%clk
0:02:28.3]} 10. Na3 {[%clk 0:02:32.8]} 10... a6 {[%clk 0:02:24.9]} 11. Be3
{[%clk 0:02:22.4]} 11... c4 {[%clk 0:02:09.2]} 12. b3 {[%clk 0:02:14.8]} 12...
cxb3 {[%clk 0:02:06.9]} 13. Bxb3 {[%clk 0:02:13.9]} 13... fxe5 {[%clk
0:02:07.2]} 14. dxe5 {[%clk 0:02:06.8]} 14... Nxe5 {[%clk 0:02:06.9]} 15. Nxe5
{[%clk 0:02:02.1]} 15... Qxe5 {[%clk 0:02:06.4]} 16. Bd4 {[%clk 0:01:59.4]}
16... Qf5 {[%clk 0:01:54]} 17. Nc2 {[%clk 0:01:49.9]} 17... Nf6 {[%clk
0:01:48.6]} 18. Ne3 {[%clk 0:01:49.3]} 18... Qg6 {[%clk 0:01:48.5]} 19. c4
{[%clk 0:01:45.9]} 19... dxc4 {[%clk 0:01:44.9]} 20. Nxc4 {[%clk 0:01:42.9]}
20... Kb8 {[%clk 0:01:25.3]} 21. Be5+ {[%clk 0:01:34.7]} 21... Ka7 {[%clk
0:01:14.4]} 22. Qd4+ {[%clk 0:01:33.7]} 22... Ka8 {[%clk 0:01:14.1]} 23. Nb6+
{[%clk 0:01:31.6]} 23... Ka7 {[%clk 0:01:11.9]} 24. Nc8+ {[%clk 0:01:28.3]}
24... Ka8 {[%clk 0:01:11.2]} 25. Qa7# {[%clk 0:01:28]} 1-0

[Event "Betsys MČR v online bleskovém šachu 2021"]
[Site "Chess.com"]
[Date "2021.04.17"]
[Round "7"]
[White "MiroslavBucek"]
[Black "MatejKopecky13"]
[Result "1/2-1/2"]
[WhiteElo "1615"]
[BlackElo "1510"]
[TimeControl "180+1"]
[EndTime "10:09:09 PDT"]
[Termination "Remíza opakováním pozice"]

1. e4 {[%clk 0:03:00.9]} 1... e6 {[%clk 0:02:57.9]} 2. d4 {[%clk 0:02:59.9]}
2... d5 {[%clk 0:02:57.3]} 3. Nc3 {[%clk 0:02:58.5]} 3... Nd7 {[%clk 0:02:52.4]}
4. Nf3 {[%clk 0:02:51.9]} 4... dxe4 {[%clk 0:02:51]} 5. Nxe4 {[%clk 0:02:48.7]}
5... Ngf6 {[%clk 0:02:51.3]} 6. Bg5 {[%clk 0:02:46.6]} 6... Be7 {[%clk
0:02:48.6]} 7. Bd3 {[%clk 0:02:44.9]} 7... h6 {[%clk 0:02:27.3]} 8. Bh4 {[%clk
0:02:43.1]} 8... Nxe4 {[%clk 0:02:21.7]} 9. Bxe7 {[%clk 0:02:41.4]} 9... Qxe7
{[%clk 0:02:22.6]} 10. Bxe4 {[%clk 0:02:40.5]} 10... Nf6 {[%clk 0:02:22.7]} 11.
Bd3 {[%clk 0:02:39.7]} 11... O-O {[%clk 0:02:19.8]} 12. O-O {[%clk 0:02:39.6]}
12... Bd7 {[%clk 0:02:19]} 13. Re1 {[%clk 0:02:39.2]} 13... c5 {[%clk
0:02:15.6]} 14. dxc5 {[%clk 0:02:30.9]} 14... Qxc5 {[%clk 0:02:15.1]} 15. Qe2
{[%clk 0:02:19.2]} 15... Rad8 {[%clk 0:02:08.9]} 16. Rad1 {[%clk 0:02:17.9]}
16... Bc6 {[%clk 0:02:06.7]} 17. b3 {[%clk 0:01:59.5]} 17... Rfe8 {[%clk
0:02:02]} 18. Qe5 {[%clk 0:01:54.5]} 18... Qb6 {[%clk 0:01:56.8]} 19. Qg3 {[%clk
0:01:46.1]} 19... Nh5 {[%clk 0:01:51.9]} 20. Qg4 {[%clk 0:01:43.2]} 20... Nf6
{[%clk 0:01:51.6]} 21. Qg3 {[%clk 0:01:42.4]} 21... Nh5 {[%clk 0:01:46.4]} 22.
Qe5 {[%clk 0:01:42.1]} 22... Nf6 {[%clk 0:01:45.5]} 23. Nh4 {[%clk 0:01:31.1]}
23... Ng4 {[%clk 0:01:41.8]} 24. Qg3 {[%clk 0:01:24.5]} 24... Nf6 {[%clk
0:01:27.3]} 25. Nf3 {[%clk 0:01:11.7]} 1/2-1/2

[Event "Betsys MČR v online bleskovém šachu 2021"]
[Site "Chess.com"]
[Date "2021.04.17"]
[Round "7"]
[White "pkozubik"]
[Black "zdenav"]
[Result "0-1"]
[WhiteElo "1168"]
[BlackElo "1823"]
[TimeControl "180+1"]
[EndTime "10:09:11 PDT"]
[Termination "Uživatel zdenav zvítězil po vzdání soupeře"]

1. e4 {[%clk 0:00:15.9]} 1... e5 {[%clk 0:02:52.8]} 2. Nf3 {[%clk 0:00:16.8]}
2... Nf6 {[%clk 0:02:52.4]} 3. Bc4 {[%clk 0:00:17]} 3... Nxe4 {[%clk 0:02:51.6]}
4. Nxe5 {[%clk 0:00:17.4]} 4... d5 {[%clk 0:02:51.6]} 5. Qf3 {[%clk 0:00:17.2]}
5... Nf6 {[%clk 0:02:49.5]} 6. Bb3 {[%clk 0:00:16.6]} 6... Be7 {[%clk
0:02:48.1]} 7. d3 {[%clk 0:00:17.5]} 7... O-O {[%clk 0:02:47.3]} 8. O-O {[%clk
0:00:17.1]} 8... c6 {[%clk 0:02:47.1]} 9. Bg5 {[%clk 0:00:16.9]} 9... Nbd7
{[%clk 0:02:44.1]} 10. Nc3 {[%clk 0:00:17.8]} 10... Nxe5 {[%clk 0:02:43.5]} 11.
Bxf6 {[%clk 0:00:16.5]} 11... Bxf6 {[%clk 0:02:42.8]} 12. Qf4 {[%clk 0:00:15]}
12... Ng6 {[%clk 0:02:42.3]} 13. Qf3 {[%clk 0:00:14.7]} 13... b5 {[%clk
0:02:35.7]} 14. g3 {[%clk 0:00:14.6]} 14... a5 {[%clk 0:02:35]} 15. a3 {[%clk
0:00:12.7]} 15... Qd6 {[%clk 0:02:22.2]} 16. h4 {[%clk 0:00:11.1]} 16... Be6
{[%clk 0:02:17]} 17. h5 {[%clk 0:00:11.2]} 17... Ne5 {[%clk 0:02:13.1]} 18. Rae1
{[%clk 0:00:08.2]} 18... Nxf3+ {[%clk 0:02:11.8]} 0-1

[Event "Betsys MČR v online bleskovém šachu 2021"]
[Site "Chess.com"]
[Date "2021.04.17"]
[Round "7"]
[White "AlenaSouralova"]
[Black "Maty122"]
[Result "1-0"]
[WhiteElo "921"]
[BlackElo "958"]
[TimeControl "180+1"]
[EndTime "10:09:14 PDT"]
[Termination "Uživatel AlenaSouralova zvítězil matem"]

1. e4 {[%clk 0:02:58.5]} 1... e5 {[%clk 0:02:59.7]} 2. Nf3 {[%clk 0:02:58.8]}
2... Nc6 {[%clk 0:02:59.5]} 3. Nc3 {[%clk 0:02:56.3]} 3... Bb4 {[%clk
0:02:56.8]} 4. Bc4 {[%clk 0:02:53.6]} 4... Nf6 {[%clk 0:02:51.8]} 5. d3 {[%clk
0:02:51.9]} 5... O-O {[%clk 0:02:43.9]} 6. Be3 {[%clk 0:02:49.2]} 6... d5 {[%clk
0:02:35.4]} 7. exd5 {[%clk 0:02:36.1]} 7... Nxd5 {[%clk 0:02:33.7]} 8. Bxd5
{[%clk 0:02:29.4]} 8... Qxd5 {[%clk 0:02:33.3]} 9. Qd2 {[%clk 0:02:26.9]} 9...
Rd8 {[%clk 0:02:26.3]} 10. O-O-O {[%clk 0:02:22]} 10... Bxc3 {[%clk 0:02:24.3]}
11. bxc3 {[%clk 0:02:21.5]} 11... Bg4 {[%clk 0:02:14.1]} 12. h3 {[%clk
0:02:18.6]} 12... Bxf3 {[%clk 0:02:12.9]} 13. gxf3 {[%clk 0:02:18.1]} 13... Qxf3
{[%clk 0:02:11.5]} 14. Rdg1 {[%clk 0:02:14.7]} 14... Qd5 {[%clk 0:02:03.7]} 15.
Bh6 {[%clk 0:02:13.8]} 15... g6 {[%clk 0:02:03]} 16. Qg5 {[%clk 0:02:02.4]}
16... Rd6 {[%clk 0:01:56.8]} 17. Qe7 {[%clk 0:01:59.8]} 17... Qxa2 {[%clk
0:01:45.4]} 18. Qxc7 {[%clk 0:01:48.3]} 18... a5 {[%clk 0:01:27.9]} 19. Qxd6
{[%clk 0:01:44.4]} 19... Qa1+ {[%clk 0:01:24.5]} 20. Kd2 {[%clk 0:01:43.4]}
20... Qa4 {[%clk 0:01:20.9]} 21. Qf6 {[%clk 0:01:43]} 21... Ne7 {[%clk
0:00:45.6]} 22. Qg7# {[%clk 0:01:41.8]} 1-0

[Event "Betsys MČR v online bleskovém šachu 2021"]
[Site "Chess.com"]
[Date "2021.04.17"]
[Round "7"]
[White "JanBaraCZE"]
[Black "Listro33"]
[Result "0-1"]
[WhiteElo "1596"]
[BlackElo "1866"]
[TimeControl "180+1"]
[EndTime "10:09:27 PDT"]
[Termination "Uživatel Listro33 zvítězil po vzdání soupeře"]

1. d4 {[%clk 0:03:00.9]} 1... Nf6 {[%clk 0:02:58.8]} 2. c4 {[%clk 0:03:01.8]}
2... e6 {[%clk 0:02:58.5]} 3. Nc3 {[%clk 0:03:02.7]} 3... d5 {[%clk 0:02:58.5]}
4. cxd5 {[%clk 0:03:03.3]} 4... exd5 {[%clk 0:02:57.2]} 5. Nf3 {[%clk
0:03:03.7]} 5... Be7 {[%clk 0:02:56.5]} 6. g3 {[%clk 0:03:04.1]} 6... O-O {[%clk
0:02:56]} 7. Bg2 {[%clk 0:03:04.6]} 7... b6 {[%clk 0:02:56.3]} 8. O-O {[%clk
0:03:05]} 8... Bb7 {[%clk 0:02:56.2]} 9. Bg5 {[%clk 0:03:05.5]} 9... Nbd7 {[%clk
0:02:56.1]} 10. Re1 {[%clk 0:03:04.6]} 10... c5 {[%clk 0:02:52]} 11. dxc5 {[%clk
0:03:04.2]} 11... Nxc5 {[%clk 0:02:42.5]} 12. Ne5 {[%clk 0:02:58.6]} 12... Nfe4
{[%clk 0:02:33.3]} 13. Bxe7 {[%clk 0:02:56.2]} 13... Qxe7 {[%clk 0:02:33.1]} 14.
Nxe4 {[%clk 0:02:54.5]} 14... Nxe4 {[%clk 0:02:26.8]} 15. Bxe4 {[%clk
0:02:53.7]} 15... dxe4 {[%clk 0:02:24.8]} 16. Nc4 {[%clk 0:02:51.7]} 16... Rfd8
{[%clk 0:02:20.7]} 17. Qc2 {[%clk 0:02:50.1]} 17... Rac8 {[%clk 0:02:19.8]} 18.
b3 {[%clk 0:02:49]} 18... b5 {[%clk 0:02:18.9]} 19. Qb2 {[%clk 0:02:48]} 19...
bxc4 {[%clk 0:02:17.6]} 20. bxc4 {[%clk 0:02:48.9]} 20... Ba8 {[%clk 0:02:14.8]}
21. Red1 {[%clk 0:02:39.6]} 21... Qb7 {[%clk 0:02:13]} 22. Qxb7 {[%clk
0:02:38.3]} 22... Bxb7 {[%clk 0:02:12.4]} 23. Rxd8+ {[%clk 0:02:38.3]} 23...
Rxd8 {[%clk 0:02:12.1]} 24. Rb1 {[%clk 0:02:38.4]} 24... Bc6 {[%clk 0:02:07.3]}
25. Rb2 {[%clk 0:02:36.4]} 25... g6 {[%clk 0:02:01.7]} 26. e3 {[%clk 0:02:32.2]}
26... Rd1+ {[%clk 0:01:58.5]} 27. Kg2 {[%clk 0:02:30.9]} 27... Rc1 {[%clk
0:01:58]} 28. Rb8+ {[%clk 0:02:29.9]} 28... Kg7 {[%clk 0:01:56.5]} 29. Rb4
{[%clk 0:02:29.6]} 29... a5 {[%clk 0:01:54.7]} 30. Rb6 {[%clk 0:02:28]} 30...
Rxc4 {[%clk 0:01:53.6]} 31. Ra6 {[%clk 0:02:28.2]} 31... a4 {[%clk 0:01:51.8]}
32. h4 {[%clk 0:02:26.1]} 32... Bd7 {[%clk 0:01:46.1]} 33. Ra7 {[%clk 0:02:24]}
33... Be6 {[%clk 0:01:45.6]} 34. f3 {[%clk 0:02:16.4]} 34... Rc2+ {[%clk
0:01:44.8]} 35. Kf1 {[%clk 0:02:13.4]} 35... exf3 {[%clk 0:01:43.9]} 36. Rxa4
{[%clk 0:02:11.1]} 36... Rxa2 {[%clk 0:01:43.8]} 37. Rf4 {[%clk 0:02:09.3]}
37... f2 {[%clk 0:01:41]} 38. Rxf2 {[%clk 0:02:08.7]} 38... Rxf2+ {[%clk
0:01:39.8]} 39. Kxf2 {[%clk 0:02:08.7]} 39... Kf6 {[%clk 0:01:39.5]} 40. Kf3
{[%clk 0:02:07.9]} 40... Bd5+ {[%clk 0:01:37.4]} 41. e4 {[%clk 0:02:07.4]} 41...
Bb7 {[%clk 0:01:37]} 42. Kf4 {[%clk 0:02:06.3]} 42... Bc8 {[%clk 0:01:28.8]} 43.
g4 {[%clk 0:02:01.7]} 43... h5 {[%clk 0:01:26.2]} 44. g5+ {[%clk 0:02:00.7]}
44... Ke6 {[%clk 0:01:25.9]} 45. e5 {[%clk 0:01:57.8]} 45... Bb7 {[%clk
0:01:25.6]} 0-1